lending/lending_fUSD_20250406
["ID","MTS","AMOUNT","RATE_DAILY","PERIOD"]
[357226228,1743922245248,-151.0,0.00027397,7]
[357226229,1743922245258,-179.16,0.00027397,2]
[357226230,1743922245267,-497.5,0.00027397,2]
[357226231,1743922245277,-936.28,0.00027466,2]
[357226232,1743922245286,-166.09,0.00027472,2]
[357226234,1743922245295,-170.47,0.00028375,2]
[357226235,1743922245305,-2000.0,0.00028571,4]
[357226237,1743922245314,-1284.99,0.00028704,2]
[357226239,1743922245323,-166.09,0.0002878,2]
[357226241,1743922245332,-1285.0,0.00028835,2]
[357226243,1743922245342,-2043.0,0.00028835,2]
[357226245,1743922245355,-574.0,0.00028835,2]
[357226247,1743922245365,-1366.0,0.00028835,2]
[357226249,1743922245375,-909.0,0.00028835,2]
[357226251,1743922245386,-790.0,0.00028835,2]
[357226253,1743922245398,-1277.0,0.00028835,2]
[357226255,1743922245408,-1435.0,0.00028835,2]
[357226257,1743922245418,-544.0,0.00028835,2]
[357226259,1743922245430,-4139.0,0.00028835,2]
[357226261,1743922245440,-151.0,0.00028835,2]
[357226263,1743922245450,-3954.0,0.00028835,2]
[357226265,1743922245459,-851.0,0.00028835,2]
[357226267,1743922245469,-500.0,0.00029,2]
[357226269,1743922245479,-1000.0,0.00029101,2]
[357226271,1743922245488,-150.0,0.0002917,2]
[357226273,1743922245498,-179.16,0.00029224,2]
[357226275,1743922245508,-618.49675777,0.00029362,5]
[357226277,1743922245518,-60915.6021845,0.0003,20]
[357226279,1743922245527,-152.138055,0.0003,7]
[357226281,1743922245537,-154.847367,0.0003,7]
[357226283,1743922245546,-151.0,0.0003,7]
[357226285,1743922245555,-151.0,0.0003,7]
[357226287,1743922245565,-151.0,0.0003,7]
[357226289,1743922245574,-166.09,0.00030088,2]
[357226291,1743922245583,-10230.3,0.0003062,2]
[357226293,1743922245593,-1284.99,0.00030968,2]
[357226295,1743922245602,-550.0,0.00031,2]
[357226297,1743922245611,-179.16,0.0003105,2]
[357226299,1743922245621,-166.09,0.00031397,2]
[357226301,1743922245629,-459.15,0.00031452,2]
[357226303,1743922245638,-202.73,0.00031452,2]
[357226305,1743922245648,-151.0,0.00031835,7]
[357226307,1743922245658,-151.0,0.00031835,7]
[357226309,1743922245667,-151.0,0.00031835,7]
[357226311,1743922245676,-151.0,0.00031835,7]
[357226313,1743922245685,-710.78427,0.00031835,7]
[357226315,1743922245695,-710.78427,0.00031835,7]
[357226317,1743922245705,-151.0,0.00031835,7]
[357226319,1743922245714,-151.0,0.00031835,7]
[357226321,1743922245723,-153.493381,0.00031835,7]
[357226323,1743922245733,-151.0,0.00031835,7]
[357226325,1743922245743,-151.0,0.00031835,7]
[357226327,1743922245752,-151.0,0.00031835,7]
[357226329,1743922245761,-151.0,0.00031835,7]
[357226331,1743922245770,-151.0,0.00031835,7]
[357226333,1743922245779,-151.0,0.00031835,7]
[357226335,1743922245788,-151.0,0.00031835,7]
[357226337,1743922245798,-151.0,0.00031835,7]
[357226339,1743922245807,-1285.0,0.00031835,2]
[357226341,1743922245816,-2043.0,0.00031835,2]
[357226343,1743922245826,-574.0,0.00031835,2]
[357226345,1743922245836,-1366.0,0.00031835,2]
[357226347,1743922245845,-909.0,0.00031835,2]
[357226349,1743922245854,-790.0,0.00031835,2]
[357226351,1743922245864,-1277.0,0.00031835,2]
[357226353,1743922245874,-1435.0,0.00031835,2]
[357226355,1743922245883,-544.0,0.00031835,2]
[357226357,1743922245892,-4139.0,0.00031835,2]
[357226359,1743922245901,-151.0,0.00031835,2]
[357226361,1743922245911,-3954.0,0.00031835,2]
[357226363,1743922245920,-851.0,0.00031835,2]
[357226365,1743922245929,-151.0,0.00032232,7]
[357226367,1743922245938,-254.59,0.00032646,2]
[357226369,1743922245948,-179.16,0.00032877,2]
[357226371,1743922245956,-151.0,0.00032877,7]
[357226373,1743922245966,-180.29915719,0.00032877,7]
[357226375,1743922245975,-500.0,0.00032877,7]
[357226377,1743922245984,-500.0,0.00032877,7]
[357226379,1743922245993,-323.02481154,0.00032877,7]
[357226381,1743922246003,-500.0,0.00032877,7]
[357226383,1743922246013,-600.0,0.00033,2]
[357226385,1743922246022,-1284.99,0.00033232,2]
[357226387,1743922246032,-150.0,0.00034548,10]
[357226389,1743922246042,-1285.0,0.00034835,2]
[357226391,1743922246052,-2043.0,0.00034835,2]
[357226393,1743922246061,-574.0,0.00034835,2]
[357226395,1743922246071,-1366.0,0.00034835,2]
[357226397,1743922246081,-909.0,0.00034835,2]
[357226399,1743922246090,-790.0,0.00034835,2]
[357226401,1743922246099,-1277.0,0.00034835,2]
[357226403,1743922246109,-1435.0,0.00034835,2]
[357226405,1743922246118,-544.0,0.00034835,2]
[357226407,1743922246127,-4139.0,0.00034835,2]
[357226409,1743922246137,-151.0,0.00034835,2]
[357226411,1743922246146,-3954.0,0.00034835,2]
[357226413,1743922246155,-851.0,0.00034835,2]
[357226415,1743922246165,-650.0,0.00035,2]
[357226417,1743922246174,-151.0,0.0003511,7]
[357226419,1743922246184,-151.0,0.0003511,7]
[357226421,1743922246195,-1500.0,0.00035371,5]
[357226423,1743922246204,-1500.0,0.00035471,5]
[357226425,1743922246213,-1284.99,0.00035496,2]
[357226427,1743922246223,-150.0,0.00035616,2]
[357226429,1743922246232,-358.33885229,0.00035737,8]
[357226431,1743922246241,-501.42009875,0.00035762,5]
[357226433,1743922246251,-248.01544304,0.00035875,5]
[357226435,1743922246260,-338.85886606,0.00035875,5]
[357226437,1743922246269,-151.848181,0.0003637,7]
[357226439,1743922246278,-151.0,0.0003637,7]
[357226441,1743922246288,-155.170773,0.0003637,7]
[357226443,1743922246297,-151.0,0.0003637,7]
[357226445,1743922246306,-151.0,0.0003637,7]
[357226447,1743922246315,-151.0,0.0003637,7]
[357226449,1743922246324,-161.42,0.000365,2]
[357226451,1743922246334,-150.0,0.00036554,2]
[357226453,1743922246344,-150.0,0.000366,2]
[357226455,1743922246358,-501.17171318,0.0003667,2]
[357226457,1743922246368,-500.0,0.0003677,2]
[357226459,1743922246377,-500.0,0.0003677,2]
[357226461,1743922246387,-500.0,0.0003677,2]
[357226463,1743922246397,-700.0,0.00037,2]
[357226465,1743922246406,-150.0,0.00037491,2]
[357226467,1743922246415,-616.48825506,0.00037581,6]
[357226469,1743922246425,-706.34025553,0.00037581,7]
[357226471,1743922246434,-1284.99,0.0003776,2]
[357226473,1743922246444,-1285.0,0.00037835,2]
[357226476,1743922246455,-2043.0,0.00037835,2]
[357226478,1743922246464,-1366.0,0.00037835,2]
[357226480,1743922246474,-909.0,0.00037835,2]
[357226482,1743922246483,-790.0,0.00037835,2]
[357226484,1743922246492,-1277.0,0.00037835,2]
[357226486,1743922246501,-1435.0,0.00037835,2]
[357226488,1743922246510,-544.0,0.00037835,2]
[357226490,1743922246520,-4139.0,0.00037835,2]
[357226491,1743922246529,-151.0,0.00037835,2]
[357226493,1743922246539,-3954.0,0.00037835,2]
[357226495,1743922246548,-851.0,0.00037835,2]
[357226498,1743922246558,-176.48,0.00037877,2]
[357226500,1743922246568,-150.0,0.00038428,2]
[357226501,1743922246579,-254.59,0.00038443,2]
[357226504,1743922246589,-750.0,0.00039,2]
[357226506,1743922246598,-164.22562423,0.000391,2]
[357226508,1743922246607,-150.0,0.00039366,2]
[357226509,1743922246619,-1284.99,0.00040024,2]
[357226512,1743922246629,-446.33,0.000401,7]
[357226514,1743922246638,-150.0,0.00040303,2]
[357226516,1743922246647,-154.450254,0.00040835,14]
[357226518,1743922246656,-154.283338,0.00040835,14]
[357226531,1743922246772,-151.0,0.00040835,14]
[357226533,1743922246783,-153.306547,0.00040835,14]
[357226535,1743922246793,-1285.0,0.00040835,2]
[357226537,1743922246802,-2043.0,0.00040835,2]
[357226539,1743922246812,-1366.0,0.00040835,2]
[357226541,1743922246821,-909.0,0.00040835,2]
[357226543,1743922246830,-790.0,0.00040835,2]
[357226545,1743922246839,-1277.0,0.00040835,2]
[357226547,1743922246848,-1435.0,0.00040835,2]
[357226549,1743922246857,-544.0,0.00040835,2]
[357226551,1743922246867,-4139.0,0.00040835,2]
[357226553,1743922246876,-151.0,0.00040835,2]
[357226555,1743922246886,-3954.0,0.00040835,2]
[357226557,1743922246895,-851.0,0.00040835,2]
[357226559,1743922246905,-4274.02718956,0.000409,2]
[357226561,1743922246914,-800.0,0.00041,2]
[357226563,1743922246923,-150.0,0.0004124,2]
[357226565,1743922246932,-152.0,0.00041334,3]
[357226567,1743922246942,-150.0,0.00041931,3]
[357226569,1743922246952,-150.0,0.00041931,3]
[357226571,1743922246962,-150.0,0.00041931,3]
[357226573,1743922246971,-150.0,0.00041931,3]
[357226575,1743922246980,-150.0,0.00041931,3]
[357226577,1743922246990,-150.0,0.00041931,3]
[357226579,1743922246999,-150.0,0.00041931,3]
[357226581,1743922247008,-150.0,0.00041989,3]
[357226583,1743922247017,-74489.0,0.0004199,7]
[357226585,1743922247027,-151.0,0.0004199,14]
[357226587,1743922247036,-152.735449,0.0004199,14]
[357226589,1743922247047,-1012.0,0.00042,8]
[357226591,1743922247056,-150.0,0.00042177,2]
[357226593,1743922247065,-1284.99,0.00042288,2]
[357226595,1743922247074,-552.316028,0.000425,60]
[357226597,1743922247083,-519.888342,0.000425,60]
[357226599,1743922247092,-850.0,0.00043,2]
[357226601,1743922247102,-150.0,0.00043115,2]
[357226603,1743922247111,-1488.0,0.00043835,5]
[357226605,1743922247120,-903.911,0.00043835,2]
[357226607,1743922247130,-1995.935,0.00043835,2]
[357226609,1743922247140,-1366.0,0.00043835,2]
[357226611,1743922247149,-909.0,0.00043835,2]
[357226613,1743922247158,-790.0,0.00043835,2]
[357226615,1743922247167,-1277.0,0.00043835,2]
[357226617,1743922247177,-1435.0,0.00043835,2]
[357226619,1743922247187,-544.0,0.00043835,2]
[357226621,1743922247196,-396.257,0.00043835,2]
[357226623,1743922247206,-151.0,0.00043835,2]
[357226625,1743922247215,-3954.0,0.00043835,2]
[357226627,1743922247225,-851.0,0.00043835,2]
[357226629,1743922247234,-500.0,0.00043836,120]
[357226631,1743922247244,-500.0,0.00043836,120]
[357226633,1743922247253,-500.0,0.00043836,120]
[357226635,1743922247263,-357.13222537,0.00043836,120]
[357226637,1743922247273,-500.0,0.00043836,120]
[357226639,1743922247282,-500.0,0.00043836,120]
[357226641,1743922247292,-500.0,0.00043836,120]
[357226643,1743922247301,-500.0,0.00043836,120]
[357226645,1743922247310,-2306.9,0.000439,14]
[357226647,1743922247319,-152.0,0.00043964,4]
[357226649,1743922247328,-150.0,0.00044052,2]
[357226651,1743922247338,-254.59,0.00044239,2]
[357226653,1743922247348,-1284.99,0.00044551,2]
[357226655,1743922247361,-552.316028,0.00044625,60]
[357226657,1743922247371,-519.888342,0.00044625,60]
[357226659,1743922247381,-150.0,0.00044989,2]
[357226661,1743922247390,-10162.28075079,0.00045,2]
[357226663,1743922247401,-157.73,0.00045,2]
[357226665,1743922247410,-563.79895452,0.00045,10]
[357226667,1743922247420,-151.0,0.00045,120]
[357226668,1743922247430,-900.0,0.00045,2]
[357226670,1743922247439,-1000.0,0.00045,120]
[357226672,1743922247449,-164.22562423,0.000455,20]
[357226674,1743922247458,-165.381956,0.000456,2]
[357226676,1743922247467,-150.0,0.00045927,2]
[357226678,1743922247477,-319.01185329,0.00046407,120]
[357226680,1743922247486,-152.0,0.00046595,5]
[357226682,1743922247496,-552.316028,0.0004675,60]
[357226684,1743922247506,-519.888342,0.0004675,60]
[357226686,1743922247515,-355.62494099,0.000468,2]
[357226688,1743922247524,-1284.99,0.00046815,2]
[357226690,1743922247533,-1366.0,0.00046835,2]
[357226692,1743922247543,-909.0,0.00046835,2]
[357226694,1743922247553,-790.0,0.00046835,2]
[357226696,1743922247561,-1277.0,0.00046835,2]
[357226698,1743922247571,-1435.0,0.00046835,2]
[357226700,1743922247580,-544.0,0.00046835,2]
[357226702,1743922247589,-151.0,0.00046835,2]
[357226704,1743922247598,-3954.0,0.00046835,2]
[357226706,1743922247607,-709.172,0.00046835,2]
[357226708,1743922247617,-150.0,0.00046864,2]
[357226710,1743922247626,-950.0,0.00047,2]
[357226712,1743922247635,-193.94311781,0.00047061,10]
[357226714,1743922247644,-2306.9,0.000471,14]
[357226716,1743922247653,-150.0,0.00047801,2]
[357226718,1743922247662,-2000.0,0.000479,2]
[357226720,1743922247671,-261.69,0.00048,10]
[357226722,1743922247681,-3893.53935325,0.00048,4]
[357226724,1743922247690,-200.0,0.00048064,2]
[357226726,1743922247699,-200.0,0.00048064,2]
[357226728,1743922247708,-200.0,0.00048064,2]
[357226730,1743922247716,-200.0,0.00048064,2]
[357226732,1743922247725,-200.0,0.00048064,2]
[357226734,1743922247734,-200.0,0.00048064,2]
[357226735,1743922247742,-200.0,0.00048064,2]
[357226737,1743922247751,-200.0,0.00048064,2]
[357226739,1743922247760,-200.0,0.00048064,2]
[357226741,1743922247769,-200.0,0.00048064,2]
[357226743,1743922247777,-200.0,0.00048064,2]
[357226745,1743922247786,-200.0,0.00048064,2]
[357226747,1743922247795,-200.0,0.00048064,2]
[357226749,1743922247804,-200.0,0.00048064,2]
[357226751,1743922247814,-200.0,0.00048064,2]
[357226753,1743922247823,-200.0,0.00048064,2]
[357226755,1743922247832,-200.0,0.00048064,2]
[357226757,1743922247841,-200.0,0.00048064,2]
[357226759,1743922247851,-200.0,0.00048064,2]
[357226761,1743922247860,-200.0,0.00048064,2]
[357226763,1743922247870,-200.0,0.00048064,2]
[357226765,1743922247879,-200.0,0.00048064,2]
[357226767,1743922247888,-200.0,0.00048064,2]
[357226769,1743922247897,-200.0,0.00048064,2]
[357226771,1743922247907,-200.0,0.00048064,2]
[357226773,1743922247916,-200.0,0.00048064,2]
[357226775,1743922247925,-200.0,0.00048064,2]
[357226777,1743922247935,-200.0,0.00048064,2]
[357226779,1743922247944,-200.0,0.00048064,2]
[357226781,1743922247954,-200.0,0.00048064,2]
[357226783,1743922247962,-200.0,0.00048064,2]
[357226785,1743922247972,-200.0,0.00048064,2]
[357226787,1743922247981,-200.0,0.00048064,2]
[357226789,1743922247990,-200.0,0.00048064,2]
[357226790,1743922247998,-268.0,0.00048064,2]
[357226791,1743922248007,-151.0,0.00048064,14]
[357226792,1743922248016,-151.0,0.00048064,14]
[357226793,1743922248026,-151.0,0.00048064,14]
[357226794,1743922248035,-151.0,0.00048064,14]
[357226795,1743922248044,-1120.99073804,0.00048329,10]
[357226796,1743922248052,-2000.0,0.00048345,10]
[357226797,1743922248062,-513.24303803,0.00048445,10]
[357226798,1743922248071,-150.0,0.00048738,2]
[357226799,1743922248080,-281.201153,0.000488,14]
[357226801,1743922248090,-151.0,0.000488,14]
[357226803,1743922248099,-151.0,0.000488,14]
[357226804,1743922248108,-153.076369,0.000488,14]
[357226806,1743922248117,-151.0,0.000488,14]
[357226808,1743922248126,-152.721377,0.000488,14]
[357226810,1743922248136,-255.134152,0.000488,14]
[357226812,1743922248145,-151.0,0.000488,14]
[357226814,1743922248154,-151.0,0.000488,14]
[357226816,1743922248163,-151.0,0.000488,14]
[357226818,1743922248173,-155.8827,0.000488,14]
[357226820,1743922248182,-151.0,0.000488,14]
[357226822,1743922248192,-151.0,0.000488,14]
[357226824,1743922248201,-151.0,0.000488,14]
[357226826,1743922248211,-710.78427,0.000488,14]
[357226828,1743922248219,-710.78427,0.000488,14]
[357226830,1743922248229,-151.0,0.000488,14]
[357226832,1743922248238,-255.245485,0.000488,14]
[357226834,1743922248248,-151.0,0.000488,14]
[357226836,1743922248257,-151.0,0.000488,14]
[357226838,1743922248267,-151.0,0.000488,14]
[357226840,1743922248277,-202.939432,0.000488,14]
[357226842,1743922248287,-151.0,0.000488,14]
[357226844,1743922248296,-151.0,0.000488,14]
[357226846,1743922248306,-151.0,0.000488,14]
[357226848,1743922248316,-552.316028,0.00048875,60]
[357226850,1743922248326,-519.888342,0.00048875,60]
[357226852,1743922248335,-4237.0,0.00049,5]
[357226854,1743922248344,-1000.0,0.00049,2]
[357226856,1743922248358,-1284.99,0.00049079,2]
[357226858,1743922248368,-152.0,0.00049225,6]
[357226860,1743922248377,-150.0,0.00049314,3]
[357226862,1743922248387,-151.0,0.00049315,14]
[357226864,1743922248398,-151.0,0.00049315,14]
[357226866,1743922248407,-151.0,0.00049315,14]
[357226868,1743922248417,-151.0,0.00049315,14]
[357226870,1743922248427,-151.0,0.00049315,14]
[357226872,1743922248437,-151.0,0.00049315,14]
[357226874,1743922248448,-508.75169335,0.00049315,7]
[357226876,1743922248458,-504.52378311,0.00049315,10]
[357226878,1743922248468,-151.0,0.00049315,14]
[357226880,1743922248478,-151.0,0.00049315,14]
[357226882,1743922248487,-151.0,0.00049315,14]
[357226884,1743922248497,-151.0,0.00049315,14]
[357226886,1743922248507,-151.0,0.00049315,14]
[357226888,1743922248516,-151.0,0.00049315,14]
[357226890,1743922248525,-151.0,0.00049315,14]
[357226892,1743922248537,-154.608864,0.00049315,14]
[357226894,1743922248546,-151.0,0.00049315,14]
[357226896,1743922248556,-153.401278,0.00049315,14]
[357226898,1743922248565,-514.31505839,0.00049315,2]
[357226900,1743922248575,-151.0,0.00049315,14]
[357226902,1743922248585,-151.0,0.00049315,14]
[357226904,1743922248594,-710.78427,0.00049315,14]
[357226906,1743922248603,-710.78427,0.00049315,14]
[357226908,1743922248613,-710.78427,0.00049315,14]
[357226910,1743922248623,-710.78427,0.00049315,14]
[357226912,1743922248632,-152.993348,0.00049315,14]
[357226914,1743922248641,-151.0,0.00049315,14]
[357226916,1743922248651,-151.0,0.00049315,14]
[357226918,1743922248660,-151.0,0.00049315,14]
[357226920,1743922248670,-151.0,0.00049315,14]
[357226922,1743922248680,-151.0,0.00049315,14]
[357226924,1743922248689,-241.103684,0.00049315,14]
[357226926,1743922248699,-151.0,0.00049315,14]
[357226928,1743922248708,-151.0,0.00049315,14]
[357226930,1743922248718,-1038.62794932,0.00049315,28]
[357226932,1743922248728,-151.0,0.00049315,14]
[357226934,1743922248737,-151.0,0.00049315,14]
[357226936,1743922248748,-151.0,0.00049315,14]
[357226938,1743922248758,-151.0,0.00049315,14]
[357226940,1743922248767,-151.0,0.00049315,14]
[357226942,1743922248777,-151.0,0.00049315,14]
[357226944,1743922248786,-151.0,0.00049315,14]
[357226946,1743922248796,-151.0,0.00049315,14]
[357226948,1743922248806,-151.0,0.00049315,14]
[357226950,1743922248815,-151.0,0.00049315,14]
[357226952,1743922248825,-200.0,0.00049315,7]
[357226954,1743922248835,-200.0,0.00049315,7]
[357226956,1743922248844,-200.0,0.00049315,7]
[357226958,1743922248854,-200.0,0.00049315,7]
[357226960,1743922248863,-200.0,0.00049315,7]
[357226962,1743922248874,-307.16271601,0.00049315,7]
[357226964,1743922248883,-2365.48,0.00049315,120]
[357226966,1743922248892,-2365.48,0.00049315,120]
[357226968,1743922248902,-2365.48,0.00049315,120]
[357226970,1743922248911,-2365.48,0.00049315,120]
[357226972,1743922248921,-2365.48,0.00049315,120]
[357226974,1743922248930,-2365.48,0.00049315,120]
[357226976,1743922248939,-2365.48,0.00049315,120]
[357226978,1743922248948,-2365.48,0.00049315,120]
[357226980,1743922248958,-2365.48,0.00049315,120]
[357226982,1743922248967,-2365.48,0.00049315,120]
[357226984,1743922248977,-2365.48,0.00049315,120]
[357226986,1743922248987,-2365.48,0.00049315,120]
[357226988,1743922248996,-2365.48,0.00049315,120]
[357226990,1743922249005,-2365.48,0.00049315,120]
[357226992,1743922249014,-2365.57113558,0.00049315,120]
[357226994,1743922249023,-500.0,0.00049315,120]
[357226996,1743922249032,-500.0,0.00049315,120]
[357226998,1743922249041,-500.0,0.00049315,120]
[357227000,1743922249051,-500.0,0.00049315,120]
[357227002,1743922249060,-500.0,0.00049315,120]
[357227004,1743922249070,-355.74093779,0.00049315,120]
[357227006,1743922249080,-500.0,0.00049315,120]
[357227008,1743922249089,-500.0,0.00049315,120]
[357227010,1743922249099,-500.0,0.00049315,120]
[357227012,1743922249109,-500.0,0.00049315,120]
[357227014,1743922249118,-500.0,0.00049315,120]
[357227016,1743922249127,-500.0,0.00049315,120]
[357227018,1743922249137,-540.00399077,0.00049315,120]
[357227020,1743922249146,-526.09240337,0.00049315,7]
[357227022,1743922249156,-500.0,0.00049315,120]
[357227024,1743922249165,-500.0,0.00049315,120]
[357227026,1743922249174,-500.0,0.00049315,120]
[357227028,1743922249183,-500.0,0.00049315,120]
[357227030,1743922249193,-500.0,0.00049315,120]
[357227032,1743922249203,-500.0,0.00049315,120]
[357227034,1743922249213,-500.0,0.00049315,120]
[357227036,1743922249223,-582.25065812,0.00049315,120]
[357227038,1743922249232,-500.0,0.00049315,120]
[357227039,1743922249241,-500.0,0.00049315,120]
[357227041,1743922249250,-500.0,0.00049315,120]
[357227043,1743922249260,-500.0,0.00049315,120]
[357227045,1743922249270,-632.44456774,0.00049315,120]
[357227047,1743922249279,-553.55272467,0.00049315,120]
[357227049,1743922249289,-500.0,0.00049315,120]
[357227051,1743922249299,-500.0,0.00049315,120]
[357227053,1743922249308,-591.05559702,0.00049315,120]
[357227055,1743922249317,-500.0,0.00049315,120]
[357227057,1743922249327,-500.0,0.00049315,120]
[357227059,1743922249336,-500.0,0.00049315,120]
[357227061,1743922249347,-500.0,0.00049315,120]
[357227063,1743922249360,-500.0,0.00049315,120]
[357227065,1743922249370,-500.0,0.00049315,120]
[357227067,1743922249380,-500.0,0.00049315,120]
[357227069,1743922249391,-500.0,0.00049315,120]
[357227072,1743922249401,-500.0,0.00049315,120]
[357227073,1743922249410,-500.0,0.00049315,120]
[357227075,1743922249420,-500.0,0.00049315,120]
[357227077,1743922249430,-500.0,0.00049315,120]
[357227079,1743922249440,-500.0,0.00049315,120]
[357227081,1743922249450,-590.25416036,0.00049315,120]
[357227083,1743922249460,-500.0,0.00049315,120]
[357227085,1743922249469,-500.0,0.00049315,120]
[357227087,1743922249479,-500.0,0.00049315,120]
[357227089,1743922249488,-500.0,0.00049315,120]
[357227091,1743922249497,-500.0,0.00049315,120]
[357227093,1743922249507,-500.0,0.00049315,120]
[357227095,1743922249516,-500.0,0.00049315,120]
[357227097,1743922249526,-500.0,0.00049315,120]
[357227100,1743922249535,-500.0,0.00049315,120]
[357227102,1743922249545,-500.0,0.00049315,120]
[357227114,1743922249655,-221.72235501,0.00049315,120]
[357227116,1743922249666,-500.0,0.00049315,120]
[357227118,1743922249675,-500.0,0.00049315,120]
[357227120,1743922249684,-165.61731196,0.00049315,120]
[357227122,1743922249694,-500.0,0.00049315,10]
[357227124,1743922249704,-500.0,0.00049315,10]
[357227126,1743922249713,-500.0,0.00049315,10]
[357227128,1743922249722,-500.0,0.00049315,10]
[357227130,1743922249732,-500.0,0.00049315,10]
[357227132,1743922249741,-500.0,0.00049315,10]
[357227134,1743922249750,-632.21352951,0.00049315,10]
[357227136,1743922249759,-588.30123969,0.00049315,120]
[357227138,1743922249768,-579.15237864,0.00049315,120]
[357227140,1743922249777,-500.0,0.00049315,120]
[357227142,1743922249790,-530.83,0.00049315,120]
[357227144,1743922249799,-500.0,0.00049315,120]
[357227146,1743922249808,-500.0,0.00049315,120]
[357227148,1743922249817,-500.0,0.00049315,120]
[357227150,1743922249827,-500.0,0.00049315,120]
[357227152,1743922249836,-500.0,0.00049315,120]
[357227154,1743922249845,-500.0,0.00049315,120]
[357227156,1743922249855,-500.0,0.00049315,120]
[357227158,1743922249863,-500.0,0.00049315,120]
[357227160,1743922249873,-500.0,0.00049315,120]
[357227162,1743922249883,-500.0,0.00049315,120]
[357227164,1743922249892,-500.0,0.00049315,120]
[357227166,1743922249901,-500.0,0.00049315,120]
[357227168,1743922249910,-500.0,0.00049315,120]
[357227170,1743922249920,-500.0,0.00049315,120]
[357227172,1743922249930,-500.0,0.00049315,120]
[357227174,1743922249940,-500.0,0.00049315,120]
[357227176,1743922249949,-271.3763833,0.00049315,120]
[357227178,1743922249958,-500.0,0.00049315,120]
[357227180,1743922249967,-500.0,0.00049315,120]
[357227182,1743922249977,-500.0,0.00049315,120]
[357227184,1743922249986,-500.0,0.00049315,120]
[357227186,1743922249995,-500.0,0.00049315,120]
[357227188,1743922250005,-500.0,0.00049315,120]
[357227190,1743922250015,-500.0,0.00049315,120]
[357227192,1743922250024,-271.7668322,0.00049315,120]
[357227194,1743922250033,-170.85942979,0.00049315,120]
[357227196,1743922250042,-500.0,0.00049315,120]
[357227198,1743922250052,-500.0,0.00049315,120]
[357227199,1743922250062,-500.0,0.00049315,120]
[357227202,1743922250071,-500.0,0.00049315,120]
[357227203,1743922250081,-500.0,0.00049315,120]
[357227205,1743922250090,-500.0,0.00049315,120]
[357227207,1743922250099,-500.0,0.00049315,120]
[357227209,1743922250109,-570.50868172,0.00049315,120]
[357227211,1743922250119,-500.0,0.00049315,120]
[357227214,1743922250128,-500.0,0.00049315,120]
[357227216,1743922250138,-472.83670691,0.00049315,120]
[357227218,1743922250148,-500.0,0.00049315,120]
[357227220,1743922250157,-582.83723498,0.00049315,120]
[357227222,1743922250166,-500.0,0.00049315,120]
[357227224,1743922250176,-500.0,0.00049315,120]
[357227226,1743922250186,-500.0,0.00049315,120]
[357227228,1743922250195,-500.0,0.00049315,120]
[357227230,1743922250205,-500.0,0.00049315,120]